fUSD/lending_fUSD_20260404
["ID","MTS","AMOUNT","RATE_DAILY","PERIOD"]
[419669477,1775273440601,-500.0,0.00013698,2]
[419669478,1775273440612,-500.0,0.00013698,2]
[419669479,1775273440621,-500.0,0.00013698,2]
[419669480,1775273440631,-500.0,0.00013698,2]
[419669481,1775273440642,-500.0,0.00013698,2]
[419669482,1775273440652,-500.0,0.00013698,2]
[419669483,1775273440662,-552.58785627,0.00013698,2]
[419669484,1775273440674,-592.21136403,0.00013698,2]
[419669485,1775273440684,-502.52784413,0.00013698,2]
[419669486,1775273440696,-502.02201151,0.00013698,2]
[419669487,1775273440706,-500.0,0.00013698,2]
[419669488,1775273440716,-500.0,0.00013698,2]
[419669489,1775273440725,-507.01970036,0.00013698,2]
[419669490,1775273440734,-500.0,0.00013698,2]
[419669491,1775273440743,-500.0,0.00013698,2]
[419669492,1775273440752,-500.0,0.00013698,2]
[419669493,1775273440762,-500.0,0.00013698,2]
[419669494,1775273440771,-500.0,0.00013698,2]
[419669495,1775273440780,-500.0,0.00013698,2]
[419669496,1775273440790,-500.0,0.00013698,2]
[419669497,1775273440799,-500.0,0.00013698,2]
[419669498,1775273440808,-500.0,0.00013698,2]
[419669499,1775273440817,-500.0,0.00013698,2]
[419669500,1775273440826,-500.0,0.00013698,2]
[419669501,1775273440835,-500.0,0.00013698,2]
[419669502,1775273440844,-500.0,0.00013698,2]
[419669503,1775273440854,-500.0,0.00013698,2]
[419669504,1775273440865,-500.0,0.00013698,2]
[419669505,1775273440875,-500.0,0.00013698,2]
[419669506,1775273440885,-500.0,0.00013698,2]
[419669507,1775273440896,-500.0,0.00013698,2]
[419669508,1775273440906,-500.0,0.00013698,2]
[419669509,1775273440917,-500.0,0.00013698,2]
[419669510,1775273440927,-500.0,0.00013698,2]
[419669511,1775273440938,-500.0,0.00013698,2]
[419669512,1775273440948,-500.0,0.00013698,2]
[419669513,1775273440958,-500.0,0.00013698,2]
[419669514,1775273440966,-500.0,0.00013698,2]
[419669515,1775273440975,-500.0,0.00013698,2]
[419669516,1775273440985,-322.40547967,0.00013698,2]
[419669517,1775273440994,-500.0,0.00013698,2]
[419669518,1775273441006,-500.0,0.00013698,2]
[419669519,1775273441016,-500.0,0.00013698,2]
[419669520,1775273441026,-500.0,0.00013698,2]
[419669521,1775273441036,-500.0,0.00013698,2]
[419669522,1775273441048,-500.0,0.00013698,2]
[419669523,1775273441059,-500.0,0.00013698,2]
[419669524,1775273441069,-160.12835999,0.00013698,2]
[419669525,1775273441080,-150.0,0.00013699,2]
[419669526,1775273441092,-150.0,0.00013699,2]
[419669527,1775273441103,-150.0,0.00013699,2]
[419669528,1775273441114,-150.0,0.00013699,2]
[419669529,1775273441123,-309.6,0.00013699,2]
[419669530,1775273441133,-200.0,0.00013699,2]
[419669531,1775273441143,-166.66,0.00013699,2]
[419669532,1775273441152,-500.0,0.00013699,2]
[419669533,1775273441161,-500.0,0.00013699,2]
[419669534,1775273441170,-501.43830167,0.00013699,2]
[419669535,1775273441180,-501.15172574,0.00013699,2]
[419669536,1775273441189,-2351.0,0.00013785,2]
[419669537,1775273441199,-166.66,0.00013836,2]
[419669538,1775273441208,-327.231567,0.00013841,2]
[419669539,1775273441218,-194.72792766,0.00013861,2]
[419669540,1775273441228,-420.726296,0.00013889,2]
[419669541,1775273441237,-7298.34982605,0.00013957,2]
[419669542,1775273441246,-504.31085202,0.00013968,2]
[419669543,1775273441255,-150.0,0.00013973,2]
[419669544,1775273441264,-150.0,0.00013973,2]
[419669545,1775273441273,-150.0,0.00013973,2]
[419669546,1775273441283,-166.66,0.00013973,2]
[419669547,1775273441293,-473.51720145,0.00014006,2]
[419669548,1775273441302,-8055.83574032,0.00014091,2]
[419669549,1775273441312,-959.2630038,0.00014091,2]
[419669550,1775273441322,-892.0,0.00014095,5]
[419669551,1775273441331,-710.0,0.00014095,5]
[419669552,1775273441341,-1000.0,0.00014103,2]
[419669553,1775273441351,-166.66,0.0001411,2]
[419669554,1775273441360,-15910.79500235,0.00014124,2]
[419669555,1775273441370,-150.0,0.00014247,2]
[419669556,1775273441379,-150.0,0.00014247,2]
[419669557,1775273441389,-150.0,0.00014247,2]
[419669558,1775273441398,-166.66,0.00014247,2]
[419669559,1775273441408,-503.75625281,0.00014247,2]
[419669560,1775273441417,-394.29704901,0.00014247,2]
[419669561,1775273441427,-500.0,0.00014299,2]
[419669562,1775273441436,-417.37182346,0.0001435,2]
[419669563,1775273441446,-181.43578347,0.0001435,2]
[419669564,1775273441455,-309.6,0.00014384,2]
[419669565,1775273441465,-166.66,0.00014384,2]
[419669566,1775273441477,-150.0,0.000144,2]
[419669567,1775273441486,-150.0,0.000144,2]
[419669568,1775273441495,-150.0,0.000144,2]
[419669569,1775273441507,-150.33770113,0.000144,2]
[419669570,1775273441517,-150.0,0.000144,2]
[419669571,1775273441528,-150.0,0.000144,2]
[419669572,1775273441537,-150.0,0.000144,2]
[419669573,1775273441547,-150.0,0.000144,2]
[419669574,1775273441556,-150.0,0.000144,2]
[419669575,1775273441566,-150.0,0.000144,2]
[419669576,1775273441577,-150.0,0.000144,2]
[419669577,1775273441587,-150.0,0.000144,2]
[419669578,1775273441599,-150.0,0.000144,2]
[419669579,1775273441610,-299.76912768,0.00014409,2]
[419669580,1775273441620,-7298.34982605,0.00014443,2]
[419669581,1775273441629,-150.0,0.00014545,2]
[419669582,1775273441640,-15910.79500235,0.00014568,2]
[419669583,1775273441651,-150.0,0.00014578,2]
[419669584,1775273441661,-150.0,0.000146,2]
[419669585,1775273441671,-1230.34,0.00014659,2]
[419669586,1775273441680,-150.0,0.00014691,2]
[419669587,1775273441690,-500.0,0.00014705,2]
[419669588,1775273441701,-150.0,0.0001472,2]
[419669589,1775273441711,-150.0,0.00014756,2]
[419669590,1775273441721,-2000.0,0.00014763,2]
[419669591,1775273441731,-150.0,0.000148,2]
[419669592,1775273441740,-150.0,0.00014836,2]
[419669593,1775273441750,-736.0,0.00014879,2]
[419669594,1775273441762,-7298.34982605,0.00014929,2]
[419669595,1775273441772,-150.0,0.00014933,2]
[419669596,1775273441783,-150.0,0.00014982,2]
[419669597,1775273441792,-788.23816,0.00015,2]
[419669598,1775273441800,-150.0,0.00015,2]
[419669599,1775273441809,-300.0,0.00015,2]
[419669600,1775273441818,-15910.79500235,0.00015012,2]
[419669601,1775273441828,-250.0,0.00015027,2]
[419669602,1775273441838,-150.0,0.0001504,2]
[419669603,1775273441847,-309.6,0.00015068,2]
[419669604,1775273441857,-172.99287388,0.000151,2]
[419669605,1775273441867,-179.12045545,0.00015103,2]
[419669606,1775273441877,-150.0,0.00015111,2]
[419669607,1775273441889,-150.0,0.00015127,2]
[419669608,1775273441900,-250.34616055,0.00015149,2]
[419669609,1775273441909,-186.70058188,0.00015149,2]
[419669610,1775273441919,-3292.0,0.00015163,2]
[419669611,1775273441929,-365.04,0.00015178,2]
[419669612,1775273441938,-150.0,0.000152,2]
[419669613,1775273441948,-150.0,0.000152,2]
[419669614,1775273441959,-150.0,0.000152,2]
[419669615,1775273441968,-150.0,0.000152,2]
[419669616,1775273441977,-150.0,0.000152,2]
[419669617,1775273441987,-150.0,0.000152,2]
[419669618,1775273441996,-10000.0,0.00015205,2]
[419669619,1775273442007,-150.0,0.00015273,2]
[419669620,1775273442016,-280.416,0.00015288,2]
[419669621,1775273442027,-5356.681,0.00015288,2]
[419669622,1775273442037,-150.0,0.00015289,2]
[419669623,1775273442047,-1272.74,0.00015349,2]
[419669624,1775273442057,-150.0,0.0001536,2]
[419669625,1775273442066,-417.9675713,0.00015379,2]
[419669626,1775273442075,-150.0,0.000154,2]
[419669627,1775273442084,-2115.0,0.000154,2]
[419669628,1775273442094,-2115.0,0.00015404,2]
[419669629,1775273442105,-7298.34982605,0.00015414,2]
[419669630,1775273442114,-150.0,0.00015418,2]
[419669631,1775273442124,-415.49828519,0.00015421,2]
[419669632,1775273442135,-286.78085736,0.00015421,2]
[419669633,1775273442147,-2115.0,0.0001544,2]
[419669634,1775273442157,-15910.79500235,0.00015456,2]
[419669635,1775273442168,-2115.0,0.00015461,2]
[419669636,1775273442179,-2115.0,0.00015464,2]
[419669637,1775273442189,-150.0,0.00015467,2]
[419669638,1775273442200,-282.82659638,0.00015467,2]
[419669639,1775273442209,-478.22149454,0.00015467,2]
[419669640,1775273442220,-150.0,0.00015564,2]
[419669641,1775273442231,-150.0,0.000156,2]
[419669642,1775273442240,-150.0,0.00015644,2]
[419669643,1775273442251,-150.0,0.0001568,2]
[419669644,1775273442261,-350.0,0.00015688,2]
[419669645,1775273442270,-200.0,0.000157,5]
[419669646,1775273442281,-150.0,0.00015709,2]
[419669647,1775273442291,-2115.0,0.0001572,2]
[419669648,1775273442301,-1000.0,0.00015728,2]
[419669649,1775273442311,-2115.0,0.00015748,2]
[419669650,1775273442321,-306.259251,0.00015753,2]
[419669651,1775273442332,-309.6,0.00015753,2]
[419669652,1775273442342,-1000.0,0.00015791,2]
[419669653,1775273442353,-500.0,0.00015799,2]
[419669654,1775273442363,-500.0,0.00015799,2]
[419669655,1775273442373,-500.0,0.00015799,2]
[419669656,1775273442384,-500.0,0.00015799,2]
[419669657,1775273442396,-500.0,0.00015799,2]
[419669658,1775273442406,-500.0,0.00015799,2]
[419669659,1775273442415,-500.0,0.00015799,2]
[419669660,1775273442425,-500.0,0.00015799,2]
[419669661,1775273442435,-500.0,0.00015799,2]
[419669662,1775273442444,-500.0,0.00015799,2]
[419669663,1775273442454,-500.0,0.00015799,2]
[419669664,1775273442463,-500.0,0.00015799,2]
[419669665,1775273442473,-500.0,0.00015799,2]
[419669666,1775273442482,-500.0,0.00015799,2]
[419669667,1775273442492,-500.0,0.00015799,2]
[419669668,1775273442501,-500.0,0.00015799,2]
[419669669,1775273442511,-500.0,0.00015799,2]
[419669670,1775273442521,-500.0,0.00015799,2]
[419669671,1775273442530,-500.0,0.00015799,2]
[419669672,1775273442539,-500.0,0.00015799,2]
[419669673,1775273442549,-500.0,0.00015799,2]
[419669674,1775273442558,-500.0,0.00015799,2]
[419669675,1775273442567,-500.0,0.00015799,2]
[419669676,1775273442577,-500.0,0.00015799,2]
[419669677,1775273442586,-500.0,0.00015799,2]
[419669678,1775273442596,-500.0,0.00015799,2]
[419669679,1775273442605,-500.0,0.00015799,2]
[419669680,1775273442615,-500.0,0.00015799,2]
[419669681,1775273442624,-500.0,0.00015799,2]
[419669682,1775273442634,-500.0,0.00015799,2]
[419669683,1775273442644,-500.0,0.00015799,2]
[419669684,1775273442653,-500.0,0.00015799,2]
[419669685,1775273442663,-500.0,0.00015799,2]
[419669686,1775273442672,-500.0,0.00015799,2]
[419669687,1775273442682,-500.0,0.00015799,2]
[419669688,1775273442691,-500.0,0.00015799,2]
[419669689,1775273442701,-500.0,0.00015799,2]
[419669690,1775273442711,-500.0,0.00015799,2]
[419669691,1775273442720,-150.0,0.000158,2]
[419669692,1775273442729,-200.0,0.000158,5]
[419669693,1775273442740,-159.55143181,0.000158,2]
[419669694,1775273442752,-1000.0,0.00015801,2]
[419669695,1775273442763,-150.0,0.00015822,2]
[419669696,1775273442773,-1000.0,0.00015825,2]
[419669697,1775273442784,-150.0,0.00015855,2]
[419669698,1775273442796,-1000.0,0.0001586,2]
[419669699,1775273442807,-150.0,0.00015868,2]
[419669700,1775273442818,-1000.0,0.00015869,2]
[419669701,1775273442831,-150.0,0.00015875,2]
[419669702,1775273442841,-2115.0,0.00015882,2]
[419669703,1775273442852,-1000.0,0.00015884,2]
[419669704,1775273442863,-500.0,0.0001589,2]
[419669705,1775273442873,-500.0,0.0001589,2]
[419669706,1775273442883,-500.0,0.0001589,2]
[419669707,1775273442894,-500.0,0.0001589,2]
[419669708,1775273442905,-500.0,0.0001589,2]
[419669709,1775273442915,-500.0,0.0001589,2]
[419669710,1775273442925,-500.0,0.0001589,2]
[419669711,1775273442935,-500.0,0.0001589,2]
[419669712,1775273442944,-500.0,0.0001589,2]
[419669713,1775273442954,-500.0,0.0001589,2]
[419669714,1775273442964,-500.0,0.0001589,2]
[419669715,1775273442973,-500.0,0.0001589,2]
[419669716,1775273442983,-500.0,0.0001589,2]
[419669717,1775273442993,-500.0,0.0001589,2]
[419669718,1775273443002,-500.0,0.0001589,2]
[419669719,1775273443012,-500.0,0.0001589,2]
[419669720,1775273443023,-2000.0,0.0001589,2]
[419669721,1775273443033,-344.77648348,0.00015899,2]
[419669722,1775273443043,-500.0,0.00015899,2]
[419669723,1775273443053,-500.0,0.00015899,2]
[419669724,1775273443064,-500.0,0.00015899,2]
[419669725,1775273443074,-500.0,0.00015899,2]
[419669726,1775273443084,-359.10439347,0.00015899,2]
[419669727,1775273443094,-500.0,0.00015899,2]
[419669728,1775273443105,-500.0,0.00015899,2]
[419669729,1775273443115,-315.75,0.00015899,2]
[419669730,1775273443125,-417.37182346,0.000159,2]
[419669731,1775273443135,-15910.79500235,0.000159,2]
[419669732,1775273443146,-200.0,0.000159,5]
[419669733,1775273443156,-7298.34982605,0.000159,2]
[419669734,1775273443166,-181.43578347,0.000159,2]
[419669735,1775273443177,-8055.83574032,0.000159,2]
[419669736,1775273443187,-169.20655523,0.000159,3]
[419669737,1775273443196,-959.2630038,0.000159,2]
[419669738,1775273443206,-1000.0,0.00015908,2]
[419669739,1775273443217,-150.0,0.00015931,2]
[419669740,1775273443227,-1000.0,0.00015936,2]
[419669742,1775273443237,-1000.0,0.00015939,2]
[419669744,1775273443247,-150.0,0.00015945,2]
[419669746,1775273443256,-2115.0,0.00015956,2]
[419669747,1775273443267,-500.0,0.00015973,2]
[419669748,1775273443277,-501.7767113,0.00015973,2]
[419669749,1775273443287,-500.0,0.00015973,2]
[419669750,1775273443297,-500.0,0.00015973,2]
[419669751,1775273443307,-500.0,0.00015973,2]
[419669752,1775273443316,-500.0,0.00015973,2]
[419669753,1775273443327,-500.0,0.00015973,2]
[419669754,1775273443376,-226.80144541,0.00015973,2]
[419669755,1775273443386,-500.0,0.00015973,2]
[419669756,1775273443396,-501.37713859,0.00015973,2]
[419669757,1775273443406,-404.14422201,0.00015973,2]
[419669758,1775273443415,-500.0,0.00015973,2]
[419669759,1775273443424,-501.0276224,0.00015973,2]
[419669760,1775273443435,-165.00502139,0.00015973,2]
[419669761,1775273443445,-501.55161327,0.00015973,2]
[419669762,1775273443455,-500.0,0.00015973,2]
[419669763,1775273443464,-150.0,0.00015975,2]
[419669764,1775273443474,-670.84839751,0.00015985,2]
[419669765,1775273443483,-666.0,0.00015985,2]
[419669766,1775273443493,-1190.0438643,0.00015986,2]
[419669767,1775273443503,-151.0,0.00015986,2]
[419669768,1775273443513,-151.0,0.00015986,2]
[419669769,1775273443522,-252.976654,0.00015986,2]
[419669770,1775273443531,-3570.131593,0.00015986,2]
[419669771,1775273443541,-151.0,0.00015986,2]
[419669772,1775273443551,-151.0,0.00015986,2]
[419669773,1775273443561,-501.088556,0.00015986,2]
[419669774,1775273443570,-660.913974,0.00015986,2]
[419669775,1775273443580,-501.088556,0.00015986,2]
[419669776,1775273443590,-660.913974,0.00015986,2]
[419669777,1775273443600,-501.088556,0.00015986,2]
[419669778,1775273443610,-660.913974,0.00015986,2]
[419669779,1775273443620,-501.088556,0.00015986,2]
[419669780,1775273443629,-660.913974,0.00015986,2]
[419669781,1775273443639,-133886.875,0.00015986,2]
[419669782,1775273443649,-313.327004,0.00015986,2]
[419669783,1775273443659,-313.327004,0.00015986,2]
[419669784,1775273443668,-313.327004,0.00015986,2]
[419669785,1775273443677,-313.327004,0.00015986,2]
[419669786,1775273443687,-297.05355748,0.0001599,2]
[419669787,1775273443696,-1000.0,0.00015992,2]
[419669788,1775273443706,-150.0,0.00015995,2]
[419669789,1775273443715,-2115.0,0.00015996,2]
[419669790,1775273443725,-153.40099906,0.00016,2]
[419669791,1775273443735,-153.32332907,0.00016,2]
[419669792,1775273443745,-152.61128617,0.00016,2]
[419669793,1775273443754,-150.96608219,0.00016,2]
[419669794,1775273443764,-256.52934676,0.00016,2]
[419669795,1775273443774,-154.4422212,0.00016,2]
[419669796,1775273443783,-151.47849991,0.00016,2]
[419669797,1775273443793,-287.34492743,0.00016,2]
[419669798,1775273443802,-153.65348451,0.00016,2]
[419669799,1775273443812,-151.47568116,0.00016,2]
[419669800,1775273443821,-150.52172746,0.00016,2]
[419669801,1775273443832,-153.45263565,0.00016,2]
[419669802,1775273443842,-1317900.34747926,0.00016,2]
[419669803,1775273443852,-866730.16472172,0.00016,2]
[419669804,1775273443861,-185.0,0.00016,2]
[419669805,1775273443872,-205.549188,0.00016,2]
[419669806,1775273443882,-280734.52670081,0.00016,2]
[419669807,1775273443892,-450930.10263509,0.00016,2]
[419669815,1775273445191,-500.0,0.00011392,2]
[419669816,1775273445202,-441.88662966,0.00011392,2]
[419669817,1775273445211,-500.0,0.00011392,2]
[419669818,1775273445220,-490.12320712,0.00011392,2]
[419669819,1775273445230,-500.0,0.00011392,2]
[419669820,1775273445239,-500.0,0.00011392,2]
[419669821,1775273445248,-500.0,0.00011392,2]
[419669822,1775273445258,-607.06356728,0.00011392,2]
[419669823,1775273445268,-367.81444973,0.00011392,2]
[419669824,1775273445277,-150.0,0.00013699,2]
[419669825,1775273445286,-12010.2611171,0.00016,2]
[419669826,1775273446571,-7796.96185749,0.00012332,2]
[419669827,1775273446581,-150.0,0.00013973,2]
[419669828,1775273446590,-64515.91743503,0.00016,2]
[419669832,1775273447328,-7796.96185749,0.00012842,2]
[419669833,1775273447337,-23126.00796942,0.00016,2]
[419669834,1775273447349,-1396.538,0.00016,2]
[419669862,1775273846732,-514.29208118,0.00010625,2]
[419669863,1775273846763,-200.0,0.000107,3]
[419669864,1775273846950,-5959.16679998,0.00010716,2]
[419669865,1775273849395,-10000.01,0.00010716,2]
[419669866,1775273920544,10000.01,0.00010405,2]
[419669867,1775273920566,7963.28,0.00010405,2]
[419669868,1775273966079,-2157.69240503,0.00010622,2]
[419669869,1775274022583,4150.0003,0.00010616,2]
[419669870,1775274028752,1534.62488994,0.00010616,2]
[419669871,1775274028773,10000.01,0.00010616,2]
[419669872,1775274028797,10000.01,0.00010616,2]
[419669873,1775274028818,10000.01,0.00010616,2]
[419669874,1775274028841,10000.01,0.00010616,2]
[419669875,1775274028864,10000.01,0.00010616,2]
[419669876,1775274028886,10000.01,0.00010616,2]
[419669877,1775274028908,10000.01,0.00010616,2]
[419669878,1775274034484,10000.01,0.00010288,2]
[419669879,1775274034505,5649.77,0.00010288,2]
[419669881,1775274130496,200.0,0.00010233,2]
[419669882,1775274335652,1837.51,0.00010129,2]
[419669883,1775274339082,-170.06435324,0.00010614,2]
[419669889,1775274427254,165.99,0.0001015,2]
[419669890,1775274435655,300.0,0.000105,3]
[419669891,1775274439058,-400.95331182,0.000106,3]
[419669892,1775274507076,500.0,9.895e-05,2]
[419669894,1775274558398,-1200.0,0.00010599,2]
[419669895,1775274558422,-300.0,0.00010599,2]
[419669896,1775274558443,-319.77012745,0.000106,2]
[419669897,1775274558466,-199.04668818,0.000106,3]
[419669898,1775274558488,-539.41929331,0.000106,2]
[419669899,1775274558510,-3389.97571618,0.000106,2]
[419669900,1775274558532,-304.0,0.000106,2]
[419669901,1775274558554,-539.41929331,0.00010614,2]
[419669902,1775274558578,-20837.81419312,0.00010614,2]
[419669903,1775274558600,-1200.0,0.00010614,2]
[419669904,1775274558622,-67.16322289,0.00010614,2]
[419669912,1775274619785,153.64087258,0.00010516,2]
[419669913,1775274620001,1193.09912742,0.00010515,2]
[419669914,1775274620027,10000.01,0.00010515,2]
[419669915,1775274620052,10000.01,0.00010515,2]
[419669916,1775274620078,10000.01,0.00010515,2]
[419669918,1775274620103,10000.01,0.00010515,2]
[419669919,1775274620139,10000.01,0.00010515,2]
[419669920,1775274620169,10000.01,0.00010515,2]
[419669921,1775274620194,10000.01,0.00010515,2]
[419669922,1775274620221,10000.01,0.00010515,2]
[419669923,1775274620247,10000.01,0.00010515,2]
[419669926,1775274631507,-280.63250004,0.00010515,2]
[419669927,1775274631529,-1731028.84440152,0.00010515,2]
[419669928,1775274631541,-127628.24640759,0.00010515,2]
[419669929,1775274631552,-67862.88769143,0.00010515,2]
[419669930,1775274631564,-219596.7233021,0.00010515,2]
[419669931,1775274631581,-1254.41808677,0.00010515,2]
[419669932,1775274631717,-5338.24,0.00010515,2]
[419669939,1775274631895,-3766.60401429,0.00010515,2]
[419669946,1775274637499,-500.0,0.00010514,2]
[419669947,1775274637510,-191.85179977,0.00010514,2]
[419669948,1775274637520,-328.4916229,0.00010514,2]
[419669949,1775274637529,-430.82827226,0.00010514,2]
[419669950,1775274637539,-150.97370728,0.00010514,2]
[419669951,1775274637548,-500.0,0.00010514,2]
[419669952,1775274637557,-500.0,0.00010514,2]
[419669953,1775274637567,-500.0,0.00010514,2]
[419669954,1775274637575,-272.93688099,0.00010514,2]
[419669955,1775274637584,-500.0,0.00010514,2]
[419669956,1775274637593,-500.0,0.00010514,2]
[419669957,1775274637602,-500.0,0.00010514,2]
[419669958,1775274637612,-500.0,0.00010514,2]
[419669959,1775274637622,-500.0,0.00010514,2]
[419669960,1775274637631,-500.0,0.00010514,2]
[419669961,1775274637641,-500.0,0.00010514,2]
[419669962,1775274637650,-500.0,0.00010514,2]
[419669963,1775274637660,-500.0,0.00010514,2]
[419669964,1775274637669,-151.97938331,0.00010514,2]
[419669965,1775274637678,-252050.21446884,0.00010515,2]
[419669966,1775274637687,-300.0,0.00010614,2]
[419669967,1775274637697,-300.0,0.00010614,2]
[419669968,1775274637706,-1200.0,0.00010614,2]
[419669969,1775274637715,-1688.47667606,0.00010615,2]
[419669970,1775274637725,-250.0,0.00010615,2]
[419669971,1775274637734,-150.0,0.00010615,2]
[419669972,1775274637744,-300.0,0.00010615,2]
[419669973,1775274637753,-300.0,0.00010615,2]
[419669974,1775274637763,-193.0,0.00010615,2]
[419669975,1775274637772,-539.41929331,0.00010615,2]
[419669976,1775274637781,-187.95451372,0.00010615,2]
[419669977,1775274637791,-4150.5116,0.00010616,2]
[419669978,1775274637801,-98657.4916,0.00010616,2]
[419669979,1775274637811,-6772.9161,0.00010616,2]
[419669980,1775274637820,-1000.0,0.000107,3]
[419669981,1775274637830,-500.0,0.00010715,2]
[419669982,1775274637840,-500.0,0.00010715,2]
[419669983,1775274637850,-500.0,0.00010715,2]
[419669984,1775274637861,-500.0,0.00010715,2]
[419669985,1775274637870,-500.0,0.00010715,2]
[419669986,1775274637881,-500.0,0.00010715,2]
[419669987,1775274637892,-500.0,0.00010715,2]
[419669988,1775274637902,-500.0,0.00010715,2]
[419669989,1775274637911,-500.0,0.00010715,2]
[419669990,1775274637921,-500.0,0.00010715,2]
[419669991,1775274637930,-500.0,0.00010715,2]
[419669992,1775274637939,-151.0,0.00010715,2]
[419669993,1775274637948,-151.0,0.00010715,2]
[419669994,1775274637958,-500.0,0.00010715,2]
[419669995,1775274637967,-151.0,0.00010715,2]
[419669997,1775274637977,-500.0,0.00010715,2]
[419669999,1775274637986,-151.0,0.00010715,2]
[419670000,1775274637995,-500.0,0.00010715,2]
[419670002,1775274638005,-151.0,0.00010715,2]
[419670004,1775274638015,-500.0,0.00010715,2]
[419670005,1775274638027,-151.0,0.00010715,2]
[419670007,1775274638037,-500.0,0.00010715,2]
[419670009,1775274638047,-151.0,0.00010715,2]
[419670011,1775274638056,-500.0,0.00010715,2]
[419670013,1775274638067,-151.0,0.00010715,2]
[419670014,1775274638076,-500.0,0.00010715,2]
[419670015,1775274638085,-151.0,0.00010715,2]
[419670017,1775274638094,-500.0,0.00010715,2]
[419670019,1775274638104,-151.0,0.00010715,2]
[419670021,1775274638114,-500.0,0.00010715,2]
[419670022,1775274638124,-151.0,0.00010715,2]
[419670023,1775274638134,-151.0,0.00010715,2]
[419670024,1775274638144,-500.0,0.00010715,2]
[419670025,1775274638154,-151.0,0.00010715,2]
[419670026,1775274638163,-151.0,0.00010715,2]
[419670027,1775274638174,-500.0,0.00010715,2]
[419670028,1775274638184,-151.0,0.00010715,2]
[419670029,1775274638192,-151.0,0.00010715,2]
[419670030,1775274638202,-151.0,0.00010715,2]
[419670031,1775274638213,-151.0,0.00010715,2]
[419670032,1775274638223,-151.0,0.00010715,2]
[419670033,1775274638234,-151.0,0.00010715,2]
[419670034,1775274638246,-151.0,0.00010715,2]
[419670035,1775274638255,-151.0,0.00010715,2]
[419670036,1775274638266,-151.0,0.00010715,2]
[419670037,1775274638277,-151.0,0.00010715,2]
[419670038,1775274638286,-151.0,0.00010715,2]
[419670039,1775274638297,-151.0,0.00010715,2]
[419670040,1775274638306,-151.0,0.00010715,2]
[419670041,1775274638317,-151.0,0.00010715,2]
[419670042,1775274638328,-151.0,0.00010715,2]
[419670043,1775274638338,-151.0,0.00010715,2]
[419670044,1775274638348,-151.0,0.00010715,2]
[419670045,1775274638359,-1386.78395259,0.00010715,2]
[419670046,1775274638369,-256.89227692,0.00010715,2]
[419670047,1775274638379,-166.66,0.00010716,2]
[419670048,1775274638389,-95308.58320002,0.00010716,2]
[419670049,1775274638400,-9999.99,0.00010722,2]
[419670050,1775274638409,-4999.99,0.00010722,2]
[419670051,1775274638418,-150.99,0.00010722,2]
[419670052,1775274638428,-150.99,0.00010722,2]
[419670053,1775274638437,-34180.7,0.00010722,2]
[419670054,1775274638446,-1570.92,0.00010722,2]
[419670055,1775274638455,-9999.99,0.00010722,2]
[419670056,1775274638464,-9999.99,0.00010722,2]